Cogmind - Beta 14 @@@ ROGUE MODE // 2024.09.18 @ 15:31:21 Player: Mclir Result: Self-destructed Performance ------------- Evolutions (4) 2000 Regions Visited (8) 1600 Robots Destroyed (84) 420 Value Destroyed (1944) 1944 Prototype IDs (31) 620 Alien Tech Used (0) 0 Bonus (589) 589 TOTAL SCORE: 7173 Bonus ------- High Alert Combat Kills 88 Follower Combat Kills 201 Aligned with FarCom 300 Cogmind --------- Core Integrity 770/850 Matter 300/300 Energy 117/150 System Corruption 8% Temperature Cool (0) Movement Flying (102) Ox1 Location -6/Lower Caves Parts ------- > --- POWER (1) -------- Light Angular Momentum Engine > --- PROPULSION (5) --- Improved VTOL Module Improved VTOL Module > --- UTILITY (7) ------ Structural Scanner Visual Processing Unit Hacking Suite Hacking Suite System Shield > --- WEAPON (2) ------- Heavy Pick > --- INVENTORY (5) ---- Rocket Launcher Improved Grenade Launcher Remote Datajack Spear Peak State ------------ > --- POWER ------------ Light Nuclear Core > --- PROPULSION ------- Improved VTOL Module Improved VTOL Module Improved VTOL Module Xenon Bombardment Thruster Cooled VTOL Module > --- UTILITY ---------- Structural Scanner Visual Processing Unit Hacking Suite Hacking Suite Hacking Suite Hacking Suite Improved Hacking Suite > --- WEAPON ----------- Rocket Launcher Heavy Pick > --- INVENTORY -------- Light Nuclear Core Improved Flight Unit Improved Grenade Launcher Remote Datajack Spear [Rating: 52] Favorites ----------- Power Light Nuclear Core Engine Light Ion Engine Power Core Light Nuclear Core Propulsion Light Treads Treads Light Treads Leg Carbon-fiber Leg Wheel Armored Wheel Flight Unit Improved VTOL Module Utility Large Storage Unit Device Structural Scanner Storage Large Storage Unit Processor Signal Interpreter Hackware Hacking Suite Protection Light Armor Plating Weapon Assault Rifle Energy Gun AWS/Thermal Ballistic Gun Assault Rifle Ballistic Cannon Light Cannon Launcher Mini Grenade Launcher Slashing Weapon Axe Piercing Weapon Heavy Pick Build | -11 -10 -10 -10 -9 -8 -7 -6 -6 ------- Run | Yrd Mat Min Exi Min Mat Fac Fac Low Slots Evolved 8 | . . . . . 4 2 2 . Power . | . . . . . . . . . Propulsion 3 | . . . . . 2 . 1 . Utility 5 | . . . . . 2 2 1 . Weapon . | . . . . . . . . . Parts Attached 96 | 7 5 10 . 5 44 11 13 1 Power 12 | 1 2 1 . 1 5 . 1 1 Engine 5 | 1 2 . . 1 . . . 1 Core 7 | . . 1 . . 5 . 1 . Reactor . | . . . . . . . . . Propulsion 39 | 2 . 2 . 2 22 4 7 . Treads 21 | 2 . 2 . . 17 . . . Leg 2 | . . . . 2 . . . . Wheel 3 | . . . . . 3 . . . Hover . | . . . . . . . . . Flight 13 | . . . . . 2 4 7 . Utility 23 | 2 1 2 . . 10 5 3 . Device 5 | 1 . . . . 4 . . . Storage 2 | 1 1 . . . . . . . Processor 7 | . . 1 . . 4 1 1 . Hackware 6 | . . . . . . 4 2 . Protection 3 | . . 1 . . 2 . . . Artifact . | . . . . . . . . . Weapon 22 | 2 2 5 . 2 7 2 2 . Energy Gun 1 | . . . . . 1 . . . Energy Cannon . | . . . . . . . . . Ballistic Gun 9 | 2 1 2 . . 4 . . . Ballistic Cannon 1 | . . 1 . . . . . . Launcher 7 | . 1 2 . 2 . 2 . . Special Weapon . | . . . . . . . . . Impact Weapon . | . . . . . . . . . Slashing Weapon 3 | . . . . . 2 . 1 . Piercing Weapon 1 | . . . . . . . 1 . Special Melee Weapon . | . . . . . . . . . Unidentified Prototypes 1 | . . . . . 1 . . . Parts Lost 26 | . . 3 . . 15 . 2 6 Power 4 | . . . . . 2 . 1 1 Propulsion 12 | . . 1 . . 7 . 1 3 Utility 7 | . . 1 . . 4 . . 2 Weapon 3 | . . 1 . . 2 . . . Highest Loss Streak 4 | . . 3 . . 4 . 2 4 To Critical Strikes . | . . . . . . . . . Average Slot Usage (%) 97 | . 100 99 100 100 92 95 99 96 Engine 3 | . 14 5 . 7 . . . . Core 6 | . . 8 14 6 8 7 6 5 Treads 19 | . 28 27 28 1 29 9 . . Leg 3 | . . . . 26 1 . . . Flight 7 | . . . . . 2 20 33 32 Device 7 | . 14 . . . 14 9 6 6 Storage 9 | . 14 14 14 14 9 2 . . Processor 8 | . . 11 14 14 8 7 7 6 Hackware 6 | . . . . . . 21 31 30 Ballistic Gun 6 | . 22 11 . . 5 2 . . Ballistic Cannon 3 | . . 2 14 14 . . . . Launcher 6 | . 5 13 14 14 . 4 6 5 Slashing Weapon 2 | . . . . . 7 7 . . Peak Build Rating 52 | 7 10 12 14 18 36 42 52 51 Average Rating 23 | 5 8 11 12 16 24 37 49 49 On Entrance 20 | . 7 10 12 14 16 30 40 51 Naked Turns . | . . . . . . . . . Heaviest Build 37 | 12 30 30 29 32 37 33 13 13 Greatest Support 82 | 40 40 40 40 40 82 82 27 28 Greatest Overweight (x) 2 | . . 1 . . 2 . . . Average Overweight (x) . | . . . . . . . . . Largest Inventory Capacity 15 | 8 15 15 15 15 15 15 5 5 Average Capacity 12 | 7 12 15 15 15 15 8 5 5 Most Carried 15 | 7 15 15 15 15 15 15 5 5 Average Carried 12 | 5 11 14 14 15 14 7 4 3 Final Capacity 15 | 8 15 15 15 15 15 5 5 5 Final Carried 15 | 6 15 15 15 15 15 5 3 4 Class Distribution -------------------- 49% | Mutant 29% | Scavenger-Mutant 16% | Hacker-Scout 3% | Hacker-Sprinter Dominant Class ---------------- Mutant | -10/Materials Mutant | -10/Mines Mutant | -10/Exiles Mutant | -9/Mines Scavenger-Mutant | -8/Materials Hacker-Scout | -7/Factory Hacker-Scout | -6/Factory Hacker-Sprinter | -6/Lower Caves Resources | -11 -10 -10 -10 -9 -8 -7 -6 -6 ----------- Run | Yrd Mat Min Exi Min Mat Fac Fac Low Matter Collected 1982 | 309 285 178 . 215 663 115 137 80 Remotely . | . . . . . . . . . Salvage Created 2502 | 135 492 323 . 166 1245 . 141 . Parts 181 | 8 44 15 . 18 81 . 15 . Haulers Intercepted 4 | . . . . . 4 . . . Recyclers Shooed 2 | 1 . . . . 1 . . . Parts Field Recycled . | . . . . . . . . . Retrieved Matter . | . . . . . . . . . Parts Self-Destructed . | . . . . . . . . . Prevented 2 | . . . . . . . . 2 Kills | -11 -10 -10 -10 -9 -8 -7 -6 -6 ------- Run | Yrd Mat Min Exi Min Mat Fac Fac Low Combat Hostiles Destroyed 49 | . 12 4 . 7 25 . 1 . Melee 9 | . . . . . 8 . 1 . Guns 17 | . 7 3 . . 7 . . . Cannons 6 | . . . . 2 4 . . . AOE 17 | . 5 1 . 5 6 . . . Classes Destroyed 14 | 2 6 1 . . 4 . 1 . Worker 5 | . 1 1 . 1 1 . 1 . Builder 6 | . 3 . . . 3 . . . Tunneler 5 | 2 . . . 3 . . . . Hauler 4 | . . . . . 4 . . . Recycler 4 | 1 1 2 . . . . . . Mechanic 1 | . 1 . . . . . . . Operator 3 | . . . . . 3 . . . Watcher 7 | . 1 . . . 4 . 2 . Swarmer 18 | . 6 . . 3 9 . . . Grunt 23 | . 6 2 . 4 11 . . . Duelist 1 | . . . . . 1 . . . Sentry 5 | . . 2 . . 3 . . . Hunter 1 | . . . . . 1 . . . Programmer 1 | . . . . . . . 1 . Best Kill Streak 6 | 2 4 3 . 5 6 . 1 . Combat Bots Only 6 | . 3 2 . 3 6 . 1 . Max Kills in Single Turn 4 | 1 4 1 . 3 3 . 1 . Gunslinging . | . . . . . . . . . Exploded 2 | . 2 1 . 2 2 . . . Melee 1 | . . . . . 1 . 1 . Uniques/NPCs Destroyed . | . . . . . . . . . Combat | -11 -10 -10 -10 -9 -8 -7 -6 -6 -------- Run | Yrd Mat Min Exi Min Mat Fac Fac Low Hostile Shots Fired 332 | . 51 35 . 16 150 . 16 64 Missed 112 | . 15 7 . 8 35 . 10 37 Damage Taken 3428 | . 443 374 . 192 1892 36 112 379 Core 532 | . 120 62 . 48 210 12 6 74 Absorbed by Shields . | . . . . . . . . . Regen/Repaired (Parts) 33 | . . . . . . 33 . . Core Remaining (%) 66 | 100 . . . 8 61 98 . . Volleys Fired 126 | 10 47 17 . 12 37 2 . 1 Largest 2 | 2 2 2 . 2 2 1 . 1 Hottest 68 | 40 50 55 . 68 65 33 . 33 Shots Fired 246 | 19 78 29 . 24 91 2 1 2 Gun 171 | 19 75 25 . . 51 1 . . Cannon 45 | . . 1 . 12 32 . . . Launcher 30 | . 3 3 . 12 8 1 1 2 Special . | . . . . . . . . . Kinetic 186 | 19 75 26 . 12 53 1 . . Thermal 30 | . . . . . 30 . . . Explosive 30 | . 3 3 . 12 8 1 1 2 Electromagnetic . | . . . . . . . . . Robot Hit Streak 20 | 5 20 10 . 4 11 . . . Robot Miss Streak 4 | 1 2 1 . 4 3 . . . Penetration Max . | . . . . . . . . . Secondary Targets . | . . . . . . . . . Autonomous 30 | . . . . . 30 . . . Shots Hit Robots 195 | 12 50 22 . 6 100 . 4 1 Core Hits 119 | 4 30 13 . 11 52 . 4 5 Critical Kills 1 | . 1 . . . . . . . Critical Parts Destroyed 1 | . 1 . . . . . . . Critical Strikes 9 | . 2 . . . 6 . 1 . Destroy 2 | . 2 . . . . . . . Blast 3 | . . . . . 3 . . . Sever 3 | . . . . . 3 . . . Impale 1 | . . . . . . . 1 . Melee Attacks 179 | . . . . . 93 9 72 5 Impact . | . . . . . . . . . Slashing 110 | . . . . . 93 9 8 . Piercing 69 | . . . . . . . 64 5 Sneak Attacks 15 | . . . . . 13 . 2 . Combat Hostiles . | . . . . . . . . . Follow-up Attacks . | . . . . . . . . . Damage Inflicted 6232 | 124 1119 464 . 617 3636 . 217 55 Guns 1820 | 124 666 223 . . 807 . . . Cannons 368 | . . . . 69 299 . . . Explosions 1526 | . 444 192 . 476 396 . . 18 Melee 2388 | . . . . . 2134 . 217 37 Ramming 130 | . 9 49 . 72 . . . . Kinetic 1498 | 124 666 223 . 69 416 . . . Thermal 690 | . . . . . 690 . . . Explosive 1526 | . 444 192 . 476 396 . . 18 Electromagnetic . | . . . . . . . . . Impact . | . . . . . . . . . Slashing 2134 | . . . . . 2134 . . . Piercing 254 | . . . . . . . 217 37 Highest Corruption 8 | . . . . . 4 1 8 8 Average Corruption 6 | . . . . . 4 1 8 8 Corruption Purged . | . . . . . . . . . Corruption Blocked . | . . . . . . . . . Effects 29 | . . . . . 7 1 11 10 Message Errors 2 | . . . . . 1 . . 1 Matter Fused 8 | . . . . . . . 4 4 Heat Flow Errors 2 | . . . . . 1 . 1 . Energy Discharges 5 | . . . . . 2 . 1 2 Data Loss (minor) 7 | . . . . . 2 1 3 1 Data Loss (major) 2 | . . . . . . . 1 1 Misfires 3 | . . . . . 1 . 1 1 Overload Shots . | . . . . . . . . . Overflow Damage 245 | . 36 11 . 2 195 . . 1 Projectiles . | . . . . . . . . . Explosions 50 | . 36 11 . 2 . . . 1 Melee 195 | . . . . . 195 . . . Knockbacks 9 | . . 1 . 2 6 . . . Impact 2 | . . 1 . 1 . . . . Kinetic 7 | . . . . 1 6 . . . Secondary . | . . . . . . . . . Self-Inflicted Damage 236 | . . . . 113 65 36 . 22 Shots 7 | . . . . 3 2 1 . 1 Rammed 10 | . 2 8 . . . . . . Targets Rammed 17 | . 2 9 . 6 . . . . Kicked 6 | . . . . 6 . . . . Crushed 1 | . . 1 . . . . . . Highest Temperature 267 | . 6 32 . 42 176 5 267 49 Average Temperature 31 | . 3 11 . 17 35 5 72 21 Received Heat Transfer 1062 | . 195 177 . 30 621 . . 39 Siege Activations . | . . . . . . . . . Robots Corrupted . | . . . . . . . . . Combat Hostiles . | . . . . . . . . . Parts Fried . | . . . . . . . . . Impact Corruptions . | . . . . . . . . . Robots Melted . | . . . . . . . . . Combat Hostiles . | . . . . . . . . . Parts Melted 1 | . . . . . 1 . . . Heat Transferred 888 | . . . . . 888 . . . Parts Sabotaged . | . . . . . . . . . Parts Stolen . | . . . . . . . . . Parts Stripped . | . . . . . . . . . Power Chain Reactions . | . . . . . . . . . Alert | -11 -10 -10 -10 -9 -8 -7 -6 -6 ------- Run | Yrd Mat Min Exi Min Mat Fac Fac Low Peak Influence 524 | 15 238 154 . 271 524 499 393 . Initial 244 | . 9 36 . . 46 175 244 . Average 162 | 6 96 63 . 116 240 344 175 . Maximum Alert Level 2 | . 1 . . 1 2 2 1 . Low Security (%) 70 | 100 96 100 . 82 48 38 52 . Level 1 23 | . 3 . . 17 41 6 47 . Level 2 5 | . . . . . 10 54 . . Level 3 . | . . . . . . . . . Level 4 . | . . . . . . . . . Level 5 . | . . . . . . . . . High Security . | . . . . . . . . . Max Security . | . . . . . . . . . Squads Dispatched 18 | . 1 . . 1 6 6 4 . Investigation 8 | . . . . . 3 4 1 . Extermination 4 | . . . . . . 1 3 . Reinforcement 6 | . 1 . . 1 3 1 . . Assault . | . . . . . . . . . Garrison . | . . . . . . . . . Intercept . | . . . . . . . . . Searches Triggered . | . . . . . . . . . Construction Impeded 1 | . . . . 1 . . . . Haulers Reinforced . | . . . . . . . . . Active Scanning Responses . | . . . . . . . . . Cargo Convoy Interrupts . | . . . . . . . . . Stealth | -11 -10 -10 -10 -9 -8 -7 -6 -6 --------- Run | Yrd Mat Min Exi Min Mat Fac Fac Low Distress Signals 13 | . 3 . . . 8 1 1 . Communications Jammed . | . . . . . . . . . Distress Signals . | . . . . . . . . . Times Spotted 134 | . 24 13 . 7 49 3 14 24 Peak Tracking Total 11 | . 5 2 . 3 11 5 4 9 Tactical Retreats 23 | . . 1 . . 5 1 9 7 Traps | -11 -10 -10 -10 -9 -8 -7 -6 -6 ------- Run | Yrd Mat Min Exi Min Mat Fac Fac Low Traps Triggered 9 | . . . . . 3 3 3 . Indirectly . | . . . . . . . . . Trap Hack Attempts . | . . . . . . . . . Triggered . | . . . . . . . . . Disarmed . | . . . . . . . . . Reprogrammed . | . . . . . . . . . Reused . | . . . . . . . . . Traps Extracted . | . . . . . . . . . Installed . | . . . . . . . . . Triggered 3 | . . . . . . . . 3 Machines | -11 -10 -10 -10 -9 -8 -7 -6 -6 ---------- Run | Yrd Mat Min Exi Min Mat Fac Fac Low Machines Disabled 7 | . 2 2 . 2 1 . . . Max in Single Turn 1 | . 1 1 . 1 1 . . . Garrison Access 4 | . . . . . 1 1 2 . Machines Repaired . | . . . . . . . . . Machines Dismantled . | . . . . . . . . . Machines Sabotaged . | . . . . . . . . . Overloaded Fab Kills . | . . . . . . . . . Hacking | -11 -10 -10 -10 -9 -8 -7 -6 -6 --------- Run | Yrd Mat Min Exi Min Mat Fac Fac Low Machines Accessed 43 | . 6 . 2 2 8 7 17 1 Terminals 31 | . 6 . . 1 7 5 11 1 Fabricators 2 | . . . . . . . 2 . Repair Stations 1 | . . . . . . 1 . . Recycling Units . | . . . . . . . . . Scanalyzers 1 | . . . . . . . 1 . Garrison Access 5 | . . . . . 1 1 3 . Total Hacks 100 | . 17 . 2 5 17 18 35 6 Successful 63 | . 7 . 2 4 8 7 29 6 Failed 36 | . 10 . . 1 9 11 5 . Catastrophic 7 | . . . . . 4 2 1 . Database Lockouts 1 | . . . . . . . 1 . Manual 32 | . 4 . 1 3 10 10 4 . Terminals 77 | . 17 . . 4 14 12 24 6 Fabricators 3 | . . . . . . . 3 . Repair Stations 3 | . . . . . . 3 . . Recycling Units . | . . . . . . . . . Scanalyzers 4 | . . . . . . . 4 . Garrison Access 10 | . . . . . 3 3 4 . Terminal Hacks 49 | . 7 . 2 4 6 4 20 6 Record 9 | . . . 1 . . . 2 6 Part Schematic 2 | . . . . . . . 2 . Robot Analysis 3 | . 2 . . . . . 1 . Prototype ID Bank 3 | . 1 . . . 1 . 1 . Open Door 1 | . . . . 1 . . . . Open DSF 1 | . . . . . . . 1 . Level Access Points 1 | . . . . . . 1 . . Branch Access Points 3 | . 1 . . 1 . . 1 . Emergency Access Points 5 | . . . . . 2 . 3 . Alert Level 1 | . . . . . . . 1 . Unreport Threat 2 | . . . . . 1 . 1 . Locate Traps 3 | . 1 . . . . . 2 . Dispatch Records 1 | . . . . 1 . . . . Patrol Status 1 | . . . . 1 . . . . Recall Investigation 3 | . . . . . . 2 1 . Recall Extermination 2 | . . . . . . . 2 . Recall Reinforcements 1 | . . . . . 1 . . . Zone Layout 6 | . 2 . . . 1 1 2 . Derelict Proto ID Bank 1 | . . . 1 . . . . . Fabricator Hacks 3 | . . . . . . . 3 . Load Schematic 2 | . . . . . . . 2 . Build 1 | . . . . . . . 1 . Repair Station Hacks 2 | . . . . . . 2 . . Scan Component 1 | . . . . . . 1 . . Repair 1 | . . . . . . 1 . . Recycling Unit Hacks . | . . . . . . . . . Scanalyzer 4 | . . . . . . . 4 . Insert Component 2 | . . . . . . . 2 . Analyze 2 | . . . . . . . 2 . Garrison Access Hacks 2 | . . . . . . . 2 . Seal Access 2 | . . . . . . . 2 . Unauthorized Hacks 3 | . . . . . 2 1 . . Terminals 1 | . . . . . 1 . . . Botnet 1 | . . . . . 1 . . . Fabricators . | . . . . . . . . . Repair Stations . | . . . . . . . . . Recycling Units . | . . . . . . . . . Scanalyzers . | . . . . . . . . . Garrison Access 2 | . . . . . 1 1 . . Jam 2 | . . . . . 1 1 . . Data Cores Recovered . | . . . . . . . . . Used . | . . . . . . . . . Hacking Detections 25 | . 3 . . . 7 7 7 1 Full Trace Events 6 | . . . . . 2 2 1 1 Feedback Events . | . . . . . . . . . Feedback Blocked . | . . . . . . . . . Robot Schematics Acquired . | . . . . . . . . . Robots Built . | . . . . . . . . . Authchips . | . . . . . . . . . Time . | . . . . . . . . . Total Robot Build Rating . | . . . . . . . . . Part Schematics Acquired 3 | . . . . . . . 3 . Parts Built 1 | . . . . . . . 1 . Authchips . | . . . . . . . . . Time 134 | . . . . . . . 134 . Total Part Build Rating 4 | . . . . . . . 4 . Parts Repaired 1 | . . . . . . 1 . . Time 16 | . . . . . . 16 . . Parts Recycled . | . . . . . . . . . Recycled Matter . | . . . . . . . . . Retrieved Matter . | . . . . . . . . . Retrieved Components . | . . . . . . . . . Parts Scanalyzed 1 | . . . . . . . 1 . Part Schematics Acquired 1 | . . . . . . . 1 . Parts Damaged 1 | . . . . . . . 1 . Bothacking | -11 -10 -10 -10 -9 -8 -7 -6 -6 ------------ Run | Yrd Mat Min Exi Min Mat Fac Fac Low Used RIF Installer . | . . . . . . . . . Robots Hacked . | . . . . . . . . . Non-combat . | . . . . . . . . . Combat . | . . . . . . . . . Robot Hacks Applied . | . . . . . . . . . Relay Couplers Released . | . . . . . . . . . Fabnet Peak Effective % . | . . . . . . . . . Robots Rewired . | . . . . . . . . . Allies Hacked . | . . . . . . . . . Hacks Repelled . | . . . . . . . . . Allies | -11 -10 -10 -10 -9 -8 -7 -6 -6 -------- Run | Yrd Mat Min Exi Min Mat Fac Fac Low Total Allies 5 | . . 5 . . . . . . Largest Group 4 | . . 4 . . . . . . Highest-Rated Group 71 | . . 71 . . . . . . Highest-Rated Ally 31 | . . 31 . . . . . . Total Orders . | . . . . . . . . . Ally Attacks 49 | . . 49 . . . . . . Total Damage 642 | . . 642 . . . . . . Kills 10 | . . 10 . . . . . . Allies Corrupted . | . . . . . . . . . Allies Melted 1 | . . 1 . . . . . . Intel | -11 -10 -10 -10 -9 -8 -7 -6 -6 ------- Run | Yrd Mat Min Exi Min Mat Fac Fac Low Robot Analysis Total 3 | . 2 . . . . . 1 . Derelict Logs Recovered 3 | . . 1 . 1 . . . 1 Drone Launches . | . . . . . . . . . Drone Recoveries . | . . . . . . . . . Exploration | -11 -10 -10 -10 -9 -8 -7 -6 -6 ------------- Run | Yrd Mat Min Exi Min Mat Fac Fac Low Turns Passed 9088 | 136 1228 1523 494 1015 2693 374 1265 360 Spaces Moved 8722 | 64 665 877 308 676 1359 631 2884 1258 Core 11 | 11 . . . . . . . . Treads 3137 | 53 665 877 308 41 1123 70 . . Legs 723 | . . . . 635 88 . . . Wheels 148 | . . . . . 148 . . . Hover . | . . . . . . . . . Flight 4703 | . . . . . . 561 2884 1258 Fastest Speed 20 | 50 160 160 160 130 105 26 20 21 Average Speed 83 | 141 160 160 160 131 152 40 24 26 Slowest Speed 260 | 160 160 240 160 160 260 158 30 28 Overloaded Moves 97 | . . . . . . . 72 25 Propulsion Burnouts . | . . . . . . . . . Robots Hopped 1 | . . . . . . . 1 . Cave-ins Triggered 1 | . . . . . 1 . . . Exploration Rate (%) 64 | 4 91 99 62 102 63 11 52 94 Regions Visited 8 Branch Regions 4 Pre-discovered Areas 3 | . . 1 1 1 . . . . Known Exits Taken 6 | . 1 1 1 1 . 1 1 . Unknown Exits Taken 2 | 1 . . . . 1 . . . Scrap Searched 8 | . . 2 . 2 . . . 4 Spaces Dug 121 | . . . . . 35 19 64 3 Terrain Destroyed 408 | . 17 37 . 124 109 19 73 29 Melee 110 | . . . . . 35 8 64 3 Projectile 6 | . . . . . 6 . . . AOE 292 | . 17 37 . 124 68 11 9 26 Terrain Rammed . | . . . . . . . . . Walls Destroyed . | . . . . . . . . . Machines Disabled . | . . . . . . . . . Actions | -11 -10 -10 -10 -9 -8 -7 -6 -6 --------- Run | Yrd Mat Min Exi Min Mat Fac Fac Low Total 9944 | 93 753 962 310 772 1759 733 3295 1267 Wait 680 | . 16 38 . 73 181 56 316 . Move 8712 | 63 664 876 307 675 1358 630 2881 1258 Hop 1 | . . . . . . . 1 . Pick Up 66 | 13 13 6 1 . 25 3 4 1 Fast Attach 18 | . . 1 . . 12 1 4 . Attach 44 | 7 . 2 . . 23 8 3 1 Detach 6 | . . . . . 4 . 1 1 Swap 35 | . 5 7 . 5 10 2 6 . Drop 47 | . 6 6 2 1 16 9 7 . Fire 126 | 10 47 17 . 12 37 2 . 1 Melee 179 | . . . . . 93 9 72 5 Ram . | . . . . . . . . . Kick 6 | . . . . 6 . . . . Crush 11 | . 2 9 . . . . . . Escape Stasis 13 | . . . . . . 13 . . Rewire . | . . . . . . . . . Trap . | . . . . . . . . . Miscellaneous . | . . . . . . . . . Route ------- -11/Scrapyard -10/Materials (discovered 5 exits: *Mat x3 / *Min x2) -10/Mines (discovered 3 exits: *Mat x2 / *Exi) -10/Exiles -9/Mines (discovered 2 exits: *Mat x2) -8/Materials -7/Factory (discovered 4 exits: *Fac x4) -6/Factory (discovered 4 exits: [*Fac x2] / *Low x2) -6/Lower Caves (discovered 1 exit: *Low) History --------- Turn | Location | Event 8 | -11/Scrapyard | Discovered new exit (range 15) 137 | -11/Scrapyard | Entered Materials 153 | -10/Materials | Identified exit to Mines 309 | -10/Materials | Build established: Mutant 311 | -10/Materials | Discovered new exit (range 3) 529 | -10/Materials | Discovered new exit (range 10) 937 | -10/Materials | Discovered new exit (range 4) 1365 | -10/Materials | Entered Mines 1383 | -10/Mines | Core integrity fell below 50% 1420 | -10/Mines | Lost 3 parts (1n1u1w) 1447 | -10/Mines | Discovered new exit (range 8) 1632 | -10/Mines | Identified exit to Materials 1973 | -10/Mines | Learned location of Storage (-9) 2218 | -10/Mines | Discovered exit to Materials (range 13) 2237 | -10/Mines | Assisted by bots powering up and referring to "LRC-V3" 2611 | -10/Mines | Lost 3 allies 2637 | -10/Mines | Deemed a non-threat by the Exiles lab entrance 2638 | -10/Mines | Discovered new exit (range 5) 2643 | -10/Mines | Identified exit to Exiles 2888 | -10/Mines | Entered Exiles 2933 | -10/Exiles | Met 8R-AWN 2956 | -10/Exiles | Met EX-HEX 3023 | -10/Exiles | Met EX-DEC 3108 | -10/Exiles | Learned location of Zion (-7) 3154 | -10/Exiles | Met EX-BIN 3178 | -10/Exiles | Aligned with FarCom system 3180 | -10/Exiles | Given EX-Vault access code 3220 | -10/Exiles | Opened EX-Vault 3232 | -10/Exiles | Found AWS/Thermal 3266 | -10/Exiles | Warned to stay clear of 0b10 Research branches 3287 | -10/Exiles | Exiles lab attacked by MAIN.C 3362 | -10/Exiles | Discovered new exit (range 14) 3380 | -10/Exiles | Identified exit to Mines 3382 | -10/Exiles | Left Exiles lab with AWS/Thermal 3382 | -10/Exiles | Entered Mines 3454 | -9/Mines | Found the Drone Emporium 3609 | -9/Mines | Core integrity fell below 20% 3668 | -9/Mines | A weapon hastily lodged in a ceiling crevice suddenly fell to the ground 3870 | -9/Mines | Assembled infested the area 4109 | -9/Mines | Discovered new exit (range 6) 4116 | -9/Mines | Identified exit to Materials 4272 | -9/Mines | Discovered exit to Materials (range 9) 4397 | -9/Mines | Entered Materials 4397 | -8/Materials | Evolved 4 slots: Propulsion x2, Utility x2 4692 | -8/Materials | Lost 4 parts (1p1n1u1w) 4879 | -8/Materials | Lost 4 parts (3n1w) 5081 | -8/Materials | Build established: Scavenger-Mutant 5175 | -8/Materials | Discovered new exit (range 13) 6836 | -8/Materials | Crushed by falling debris 7090 | -8/Materials | Entered Factory 7090 | -7/Factory | Evolved 2 slots: Utility x2 7341 | -7/Factory | Identified exit to Factory 7397 | -7/Factory | Repaired Rocket Launcher 7464 | -7/Factory | Entered another Factory area 7464 | -6/Factory | Evolved 2 slots: Propulsion x1, Utility x1 7480 | -6/Factory | Identified exit to Lower Caves 7486 | -6/Factory | Discovered new exit (range 18) 7523 | -6/Factory | Build established: Hacker-Scout 7770 | -6/Factory | Fabricated Cld. VTOL Module? 8054 | -6/Factory | Central database locked down 8223 | -6/Factory | Discovered new exit (range 16) 8729 | -6/Factory | Entered Lower Caves 8787 | -6/Lower Caves | Attracted the attention of an 0b10 checkpoint 8817 | -6/Lower Caves | Learned location of 1 exit from Factory 8822 | -6/Lower Caves | Identified exit to Lower Caves 8822 | -6/Lower Caves | Learned location of 1 exit from Factory 8822 | -6/Lower Caves | Learned Factory stockpile data 8822 | -6/Lower Caves | Learned Extension stockpile data 8823 | -6/Lower Caves | Attracted the attention of an 0b10 base 8904 | -6/Lower Caves | Spotted B-75 Beast 9029 | -6/Lower Caves | Build established: Hacker-Sprinter 9089 | -6/Lower Caves | Self-destructed Last Messages --------------- Found Weight Redist. System. Found 63 Matter. System corrupted: Matter fused (-8). [A new version of Cogmind is available, see F1 News page.] Acquired 8 matter. Hacking Suite destroyed. System corrupted: FCS attempts to trigger Rocket Launcher. System corrupted: Rocket Launcher misfires. Imp. Hacking Suite destroyed. Destroyed Imp. Hacking Suite. Acquired 6 matter. System corrupted: Matter fused (-5). Imp. Flight Unit destroyed. Lgt. Nuclear Core destroyed. System corrupted: Energy discharge (-25). Xenon Bombardment Thruster destroyed. Cld. VTOL Module destroyed. Critical hit (Blast). Map ----- +----------------------------------------------------+ | ????????????????######???????????????????????????? | | ??????????????########????????????????????######?? | | ????????########## ###?????????????????########?? | | ???????######### ##############??????#### ##?? | | ???####### #### #############??????##" ####? | | ???###### #### ###??###### # #### | | ???## ## ### ###?####### ### | | ???## ## ########### ###### ##### | | ???### # #""""""""" ##### ##### # | | ???##### # / T " # ##### # | | ????#### # # "# ####### # | | ?????## # # ## ###??#### | | ?????### #### # + ## ####???### | | ?????######### # # ## ######???### | | ??????######### # """"# #######??### | | ????????????### + """"# #### ###??### | | ????????????### #"""" """"# ##### ##??## | | ????????????## ########### ##### ##?### | | ????????????## ##### ###### | | ????????????## #### ##### | | ????????????## [ ##### ### # | | ????????????### ## %##### ## | | ????????????###### ##### #### ### ## | | ?????????????##### #### #### ### ## | | ????????????????## #;# % ## #### ## | | ????????????????### ;;@ # ## | | ????????????????#### ;# ## ## | | ?????############# ;= ;#### #### ########## | | ????############## ;% ;#### ################## | | ????### #### ###&[& #### ########### ###### | | ###### ## &&%& "## ##??????## ##### | | ###### ## &#& #### ###??????## #### | | ##"""##" ## ;##!##### ###??????### ## | | ##"""""" ## ###%##### ######?#### | | ##" ; #[##### ########## | | ##"""""" Y #### #### ##### | | ##"""##" BB ######## #### #### | | ####### BB ######## ## #### | | ######## ##### ###???### #### | | ### ##### ####### ###??#### #### | | ## ##### ######### ######## #### | | # ##### ###### #### | | # " " ####### ## | | ##### " " # ##### ### | | ##### " # ######## ######## | | #### "" # ###### ## ########## | | ### ######### ####????### | | ## # ######### ###??????## | | ### # ######## ##???????### | | #### # ### ##???????###### | +----------------------------------------------------+ Best States ------------- Heat Dissipation 48 Energy Generation 14 Energy Capacity 250 Matter Stores 300 Matter Capacity 300 Sight Range 18 Terrain Scan Density 10 Armor Coverage 150 Evasion (%) 65 Targeting Accuracy 8 Melee Accuracy 8 Recoil Reduction 4 Offensive Hacking 52 Defensive Hacking 10 Item Schematics ----------------- Cld. VTOL Module | -6/Factory | Hacked Imp. VTOL Module | -6/Factory | Scanalyzed Power Sword | -6/Factory | Hacked Robot Schematics ------------------ None Fabricated ------------ Cld. VTOL Module | x1 | -6/Factory Alien Tech Used ----------------- None Achievements -------------- Brute Force True Hacker Challenges ------------ None Game ------ Seed FlakSchematicDoomcannon Manual? 0 Play Time 02:35:57 Cumulative 39.1 hours Start 2024.09.17 @ 21:33:50 End 2024.09.18 @ 15:31:21 Sessions 16 Manual Loads 0 Difficulty Rogue Special Mode None Game No. 26 Rogue 26 Adventurer 0 Explorer 0 Win Type - Total 1 Types 1/0/0/0/0/0/0/0/0 Lore% 14 Gallery% 21 Achievement% 23 Wizard Run 0 Options --------- Layout 1 ASCII 0 Keyboard 0 Movement Mouse Keybinds 0 Fullscreen 1 Font 18/SmallcapsGlow Map View 54x44 Zoom Use 0% Tactical HUD 0 Map Filters NONE Filters NONE Steam 0 RUN: 58cc0128-82f7-4002-a30d-e37458691ebd